Cogmind - Beta 15 *** ADVENTURER MODE // 2025.08.09 @ 22:43:48 Player: Frisko Result: Destroyed by QW-GJP(R) with Subdweller Laser Performance ------------- Evolutions (0) 0 Regions Visited (2) 400 Robots Destroyed (9) 45 Value Destroyed (125) 125 Prototype IDs (0) 0 Alien Tech Used (0) 0 Bonus (0) 0 TOTAL SCORE: 570 Bonus ------- None Cogmind --------- Core Integrity 0/250 Matter 300/300 Energy 100/100 System Corruption 0% Temperature Cool (6) Movement Core (50) Location -10/Subcaves Parts ------- > --- POWER (1) -------- (None) > --- PROPULSION (2) --- (None) > --- UTILITY (2) ------ (None) > --- WEAPON (2) ------- (None) > --- INVENTORY (5) ---- Light Ion Engine Wheel Wheel Light Assault Rifle Peak State ------------ > --- POWER ------------ Ion Engine > --- PROPULSION ------- Wheel Wheel > --- UTILITY ---------- Small Storage Unit Light Armor Plating > --- WEAPON ----------- EM Pulse Gun Small Laser > --- INVENTORY -------- Ion Engine Aluminum Leg Aluminum Leg Wheel Wheel Wheel Wheel Light Assault Rifle [Rating: 7] Favorites ----------- Power Ion Engine Engine Ion Engine Propulsion Wheel Wheel Wheel Flight Unit Flight Unit Utility Small Storage Unit Storage Small Storage Unit Protection Light Armor Plating Weapon Small Laser Energy Gun Small Laser Build | -11 -10 -10 ------- Run | Yrd Mat Sub Slots Evolved . | . . . Power . | . . . Propulsion . | . . . Utility . | . . . Weapon . | . . . Parts Attached 10 | 6 3 1 Power 1 | 1 . . Engine 1 | 1 . . Core . | . . . Reactor . | . . . Propulsion 5 | 2 2 1 Treads . | . . . Leg . | . . . Wheel 2 | 2 . . Hover . | . . . Flight 3 | . 2 1 Utility 2 | 1 1 . Device . | . . . Storage 1 | 1 . . Processor . | . . . Hackware . | . . . Protection 1 | . 1 . Artifact . | . . . Weapon 2 | 2 . . Energy Gun 2 | 2 . . Energy Cannon . | . . . Ballistic Gun . | . . . Ballistic Cannon . | . . . Launcher . | . . . Special Weapon . | . . . Impact Weapon . | . . . Slashing Weapon . | . . . Piercing Weapon . | . . . Special Melee Weapon . | . . . Unidentified Prototypes . | . . . Parts Lost 3 | . . 3 Power . | . . . Propulsion 3 | . . 3 Utility . | . . . Weapon . | . . . Highest Loss Streak 3 | . . 3 To Critical Strikes . | . . . Average Backups 6 | 4 7 4 Power 1 | . 1 1 Propulsion 4 | 3 5 2 Utility . | . . . Weapon . | . 1 1 Tool/Special . | . . . Unused Backups 13 | 2 6 5 Power 3 | . 1 2 Propulsion 9 | 2 5 2 Utility . | . . . Weapon 1 | . . 1 Tool/Special . | . . . Average Slot Usage (%) 85 | . 96 40 Engine 12 | . 14 5 Wheel 18 | . 22 . Flight 8 | . 4 22 Storage 12 | . 14 5 Protection 9 | . 11 . Energy Gun 24 | . 28 7 Peak Build Rating 7 | 6 7 6 Average Rating 5 | 5 6 2 On Entrance 4 | . 6 7 Naked Turns 16 | . . 16 Heaviest Build 16 | 13 16 13 Greatest Support 20 | 20 20 8 Greatest Overweight (x) 5 | . 5 1 Average Overweight (x) . | . . . Largest Inventory Capacity 8 | 8 8 8 Average Capacity 7 | 7 8 5 Most Carried 8 | 7 8 6 Average Carried 6 | 5 7 4 Final Capacity 8 | 8 8 5 Final Carried 7 | 7 6 4 Class Distribution -------------------- 100% | Mutant Dominant Class ---------------- Mutant | -10/Materials Mutant | -10/Subcaves Resources | -11 -10 -10 ----------- Run | Yrd Mat Sub Matter Collected 290 | 260 30 . Remotely . | . . . Salvage Created 294 | 151 143 . Parts 14 | 5 9 . Haulers Intercepted . | . . . Recyclers Shooed . | . . . Parts Field Recycled . | . . . Retrieved Matter . | . . . Parts Self-Destructed . | . . . Prevented . | . . . Kills | -11 -10 -10 ------- Run | Yrd Mat Sub Combat Hostiles Destroyed 5 | . 5 . Guns 5 | . 5 . Classes Destroyed 4 | 2 2 . Tunneler 3 | 3 . . Recycler 1 | 1 . . Swarmer 3 | . 3 . Grunt 2 | . 2 . Best Kill Streak 4 | 4 3 . Combat Bots Only 3 | . 3 . Max Kills in Single Turn 1 | 1 1 . Gunslinging . | . . . Exploded . | . . . Melee . | . . . Uniques/NPCs Destroyed . | . . . Combat | -11 -10 -10 -------- Run | Yrd Mat Sub Hostile Shots Fired 57 | . 29 28 Missed 18 | . 8 10 Hits 39 | . 21 18 Projectile 39 | . 21 18 Damage Taken 446 | 20 137 289 Core 254 | . 43 211 Absorbed by Shields . | . . . Ignored by Resistances 134 | 6 46 82 Core Remaining (%) 100 | 100 . . Volleys Fired 21 | 5 16 . Largest 2 | 2 2 . Hottest 80 | 80 80 . Shots Fired 41 | 10 31 . Gun 41 | 10 31 . Cannon . | . . . Launcher . | . . . Special . | . . . Kinetic . | . . . Thermal 20 | 5 15 . Explosive . | . . . Electromagnetic 21 | 5 16 . Robot Hit Streak 7 | 7 5 . Robot Miss Streak 4 | 1 4 . Penetration Max . | . . . Secondary Targets . | . . . Shots Hit Robots 25 | 9 16 . Core Hits 11 | 5 6 . Critical Kills . | . . . Critical Parts Destroyed . | . . . Critical Strikes . | . . . Melee Attacks . | . . . Impact . | . . . Slashing . | . . . Piercing . | . . . Sneak Attacks . | . . . Combat Hostiles . | . . . Follow-up Attacks . | . . . Damage Inflicted 328 | 118 210 . Guns 307 | 97 210 . Cannons . | . . . Explosions 21 | 21 . . Melee . | . . . Ramming . | . . . Kinetic . | . . . Thermal 178 | 66 112 . Explosive . | . . . Electromagnetic 150 | 52 98 . Impact . | . . . Slashing . | . . . Piercing . | . . . Highest Corruption . | . . . Average Corruption . | . . . Corruption Purged . | . . . Corruption Blocked . | . . . Overload Shots . | . . . Overflow Damage . | . . . Projectiles . | . . . Explosions . | . . . Melee . | . . . Knockbacks . | . . . Impact . | . . . Kinetic . | . . . Secondary . | . . . Self-Inflicted Damage 20 | 20 . . Shots 1 | 1 . . Rammed . | . . . Targets Rammed . | . . . Kicked . | . . . Crushed . | . . . Highest Temperature 162 | 48 162 . Average Temperature 49 | 20 56 . Received Heat Transfer 108 | . 36 72 Siege Activations . | . . . Martial Activations . | . . . Shielding Activations . | . . . Robots Disrupted . | . . . Combat Hostiles . | . . . Robots Corrupted . | . . . Combat Hostiles . | . . . Parts Fried . | . . . Impact Corruptions . | . . . Robots Melted . | . . . Combat Hostiles . | . . . Parts Melted 1 | 1 . . Heat Transferred 400 | 150 250 . Parts Sabotaged . | . . . Parts Stolen . | . . . Parts Stripped . | . . . Power Chain Reactions 1 | 1 . . Alert | -11 -10 -10 ------- Run | Yrd Mat Sub Maximum Alert Level . | . . . Low Security (%) 100 | 100 100 . Level 1 . | . . . Level 2 . | . . . Level 3 . | . . . Level 4 . | . . . Level 5 . | . . . High Security . | . . . Max Security . | . . . Peak Influence 90 | 10 90 . Initial 2 | . 2 . Average 15 | 2 19 . Influence Increases 159 | 20 139 . Destroy 0b10 Robot/C 100 | . 100 . Destroy 0b10 Robot/NC 20 | 20 . . Destroy Leader 20 | . 20 . Successful Hack 4 | . 4 . Partial Spotted 15 | . 15 . Influence Decreases 159 | 15 64 80 Entered New Map 47 | . 3 44 Time Decay 92 | 15 57 20 Lost Part 16 | . . 16 Purge Threat 4 | . 4 . Squads Dispatched 2 | . 2 . Investigation 2 | . 2 . Extermination . | . . . Reinforcement . | . . . Assault . | . . . Garrison . | . . . Intercept . | . . . Searches Triggered . | . . . Construction Impeded . | . . . Haulers Reinforced . | . . . Active Scanning Responses . | . . . Cargo Convoy Interrupts . | . . . Stealth | -11 -10 -10 --------- Run | Yrd Mat Sub Distress Signals . | . . . Communications Jammed . | . . . Distress Signals . | . . . Times Spotted 10 | . 6 4 Peak Tracking Total 4 | . 3 4 Tactical Retreats . | . . . Traps | -11 -10 -10 ------- Run | Yrd Mat Sub Traps Triggered 1 | . 1 . Indirectly . | . . . Trap Hack Attempts . | . . . Triggered . | . . . Disarmed . | . . . Reprogrammed . | . . . Reused . | . . . Traps Extracted . | . . . Installed . | . . . Triggered . | . . . Machines | -11 -10 -10 ---------- Run | Yrd Mat Sub Machines Disabled . | . . . Max in Single Turn . | . . . Machines Repaired . | . . . Machines Dismantled . | . . . Machines Sabotaged . | . . . Overloaded Fab Kills . | . . . Hacking | -11 -10 -10 --------- Run | Yrd Mat Sub Machines Accessed 4 | . 4 . Terminals 4 | . 4 . Fabricators . | . . . Repair Stations . | . . . Recycling Units . | . . . Scanalyzers . | . . . Garrison Access . | . . . Total Hacks 17 | . 17 . Successful 11 | . 11 . Failed 6 | . 6 . Catastrophic 1 | . 1 . Database Lockouts . | . . . Manual . | . . . Terminals 17 | . 17 . Fabricators . | . . . Repair Stations . | . . . Recycling Units . | . . . Scanalyzers . | . . . Garrison Access . | . . . Terminal Hacks 11 | . 11 . Record 1 | . 1 . Branch Access Points 1 | . 1 . Emergency Access Points 1 | . 1 . Terminal Index 1 | . 1 . Alert Level 3 | . 3 . Unreport Threat 1 | . 1 . Recall Investigation 1 | . 1 . Hauler Manifests 1 | . 1 . Zone Layout 1 | . 1 . Fabricator Hacks . | . . . Repair Station Hacks . | . . . Recycling Unit Hacks . | . . . Scanalyzer . | . . . Garrison Access Hacks . | . . . Unauthorized Hacks . | . . . Terminals . | . . . Fabricators . | . . . Repair Stations . | . . . Recycling Units . | . . . Scanalyzers . | . . . Garrison Access . | . . . Data Cores Recovered . | . . . Used . | . . . Hacking Detections 4 | . 4 . Full Trace Events 2 | . 2 . Feedback Events . | . . . Feedback Blocked . | . . . Robot Schematics Acquired . | . . . Robots Built . | . . . Authchips . | . . . Time . | . . . Total Robot Build Rating . | . . . Part Schematics Acquired . | . . . Parts Built . | . . . Authchips . | . . . Time . | . . . Total Part Build Rating . | . . . Parts Repaired . | . . . Time . | . . . Parts Recycled . | . . . Recycled Matter . | . . . Retrieved Matter . | . . . Retrieved Components . | . . . Parts Scanalyzed . | . . . Part Schematics Acquired . | . . . Parts Damaged . | . . . Bothacking | -11 -10 -10 ------------ Run | Yrd Mat Sub Used RIF Installer . | . . . Robots Hacked . | . . . Non-combat . | . . . Combat . | . . . Robot Hacks Applied . | . . . Relay Couplers Released . | . . . Fabnet Peak Effective % . | . . . Robots Rewired . | . . . Allies Hacked . | . . . Hacks Repelled . | . . . Allies | -11 -10 -10 -------- Run | Yrd Mat Sub Total Allies . | . . . Largest Group . | . . . Highest-Rated Group . | . . . Highest-Rated Ally . | . . . Total Orders . | . . . Ally Attacks . | . . . Total Damage . | . . . Kills . | . . . Allies Corrupted . | . . . Allies Melted . | . . . Intel | -11 -10 -10 ------- Run | Yrd Mat Sub Active Infowar (turns) . | . . . Robot Analysis Total . | . . . Derelict Logs Recovered . | . . . Drone Launches . | . . . Drone Recoveries . | . . . Exploration | -11 -10 -10 ------------- Run | Yrd Mat Sub Turns Passed 507 | 98 333 76 Spaces Moved 505 | 60 311 134 Core 24 | 7 1 16 Treads . | . . . Legs . | . . . Wheels 339 | 53 286 . Hover . | . . . Flight 142 | . 24 118 Fastest Speed 37 | 50 80 37 Average Speed 74 | 76 85 47 Slowest Speed 300 | 80 300 117 Overloaded Moves . | . . . Propulsion Burnouts . | . . . Robots Hopped . | . . . Potential Cave-ins . | . . . Cave-ins Triggered . | . . . Exploration Rate (%) 18 | 3 44 7 Regions Visited 2 Branch Regions 1 Pre-discovered Areas . | . . . Known Exits Taken . | . . . Unknown Exits Taken 2 | 1 1 . Scrap Searched . | . . . Spaces Dug . | . . . Terrain Destroyed 4 | 4 . . Melee . | . . . Projectile . | . . . AOE 4 | 4 . . Terrain Rammed . | . . . Walls Destroyed . | . . . Machines Disabled . | . . . Actions | -11 -10 -10 --------- Run | Yrd Mat Sub Total 600 | 102 349 149 Wait 30 | 15 7 8 Move 503 | 59 310 134 Hop . | . . . Pick Up 20 | 15 5 . Fast Attach 3 | . 3 . Attach 7 | 6 . 1 Detach . | . . . Swap . | . . . Drop 16 | 2 8 6 Fire 21 | 5 16 . Melee . | . . . Ram . | . . . Kick . | . . . Crush . | . . . Escape Stasis . | . . . Rewire . | . . . Trap . | . . . Miscellaneous . | . . . Route ------- -11/Scrapyard -10/Materials (discovered 2 exits: Min / [*Sub]) -10/Subcaves (discovered 1 exit: [*Mat]) History --------- Turn | Location | Event 14 | -11/Scrapyard | Discovered new exit (range 15) 99 | -11/Scrapyard | Entered Materials 129 | -10/Materials | Identified exit to Mines 316 | -10/Materials | Build established: Mutant 424 | -10/Materials | Discovered new exit (range 8) 432 | -10/Materials | Entered Subcaves 480 | -10/Subcaves | Discovered new exit (range 13) 481 | -10/Subcaves | Shifting Twisted Machinery released Sub. Monowheel 504 | -10/Subcaves | Core integrity fell below 50% 507 | -10/Subcaves | Core integrity fell below 20% 508 | -10/Subcaves | Destroyed by QW-GJP(R) with Subdweller Laser Last Messages --------------- 00416_ Acquired 1 matter. 00424_ EXIT=FOUND 00429_ T-07 Excavator is excavating. LOCATION=UNKNOWN AMBIENT_HEAT=-10 GOAL=ESCAPE 00432_ Dropped Lgt. Armor Plating. 00433_ Subatomizers dissect the Lgt. Armor Plating, destroying it. 00433_ Dropped Lgt. Ion Engine. 00445_ Dropped Sml. Laser. 00447_ Subatomizers dissect the Lgt. Ion Engine. 00449_ Dropped EM Pulse Gun. 00450_ Dropped Sml. Storage Unit. 00450_ Dropped Ion Engine. 00459_ Subatomizers dissect the Lgt. Ion Engine. 00471_ Flight Unit destroyed. 00474_ Subatomizers dissect the Lgt. Ion Engine. 00480_ EXIT=FOUND Sub. Monowheel falls loose from the Twisted Machinery. 00481_ Flight Unit destroyed. Map ----- +----------------------------------------------------+ | ??????????????????????????????????????????????? | | ??????????????????????????????????????????????? | | ??????????????????????????????????????????????? | | ??????????????????????????????????????????????? | | ??????????????????????????????????????????????? | | ??????????????????????????????????????????????? | | ??????????????????????????####????????????????? | | ?????????????????????????## ##?######????????? | | ?????????????????????????# ### ######???? | | ????????????????????????## ##??? | | ???????????????????????## #??? | | ??????????????????????## """#### | | ????????????????????### ### " " # | | ????????????????????# #?# * """"" " | | ????????????????????# ##?# """"" | | ????????????????????# ##?# """#?? | | ????????????????????## #?# " ##?? | | ?????????????????????# ##?# #?? | | ???????????????????######### #?? | | ????????????????#### #???#! #?? | | ???????????????## ##??#[* ## ## ###?? | | ???????????????# ##?# ### ### ##??? | | ???????????????# ### ### ##?# ##?? | | ???????????????# # [# # ##??# #?? | | ???????????????# R "" " #???##" #?? | | ???????????????# @ R "" " #????##### | | ???????????????## ## ## ##????????? | | ????????????????### ### ## #?????????? | | ??????????????????# #### #### ?????????? | | ??????????????????# R ## #?# ?????????? | | ??????????????????# R ## ### ??????????? | | ??????????????????# ## ### ?????????????? | | ??????????????????## "###?????"##?????? | | ???????????????????# =" #????? "#?????? | | ???????????????????## ## " ##### ""#????? | | ????????????????????#### "" """?????? | | ????????????????????# ## # < ###?????? | | ????????????????????# #######??##???????? | | ????????????????????# #######?????????????????? | | ????????????????????###???????????????????????? | | ??????????????????????????????????????????????? | | ??????????????????????????????????????????????? | | ??????????????????????????????????????????????? | | ??????????????????????????????????????????????? | | ??????????????????????????????????????????????? | | ??????????????????????????????????????????????? | | ??????????????????????????????????????????????? | | ??????????????????????????????????????????????? | | ??????????????????????????????????????????????? | | ??????????????????????????????????????????????? | +----------------------------------------------------+ Best States ------------- Heat Dissipation 25 Energy Generation 10 Energy Capacity 250 Matter Stores 300 Matter Capacity 300 Sight Range 16 Terrain Scan Density 10 Armor Coverage 150 Resistance: KI 20 Resistance: TH 20 Resistance: EX 20 Resistance: EM 20 Resistance: I 20 Resistance: S 20 Resistance: P 20 Evasion (%) 62 Offensive Hacking 10 Item Schematics ----------------- None Robot Schematics ------------------ None Fabricated ------------ Nothing Repaired ---------- Nothing Alien Tech Used ----------------- None Achievements -------------- None Challenges ------------ None Game ------ Seed MobileGlidesysCore Manual? 0 Play Time 00:16:15 Cumulative 12.1 hours Start 2025.08.09 @ 22:28:27 End 2025.08.09 @ 22:43:48 Sessions 1 Manual Loads 0 Difficulty Adventurer Special Mode None Game No. 20 Rogue 17 Adventurer 3 Explorer 0 Win Type - Total 0 Types 0/0/0/0/0/0/0/0/0/0 Lore% 5 Gallery% 13 Achievement% 16 Wizard Run 0 Options --------- Layout 0 ASCII 0 Keyboard 0 Movement Numpad Keybinds 0 Fullscreen 1 Font 18/SmallcapsGlow Map View 38x25 Zoom Use 96% Tactical HUD 1 Map Filters NONE Filters NONE Steam 1 RUN: eafd4228-5bba-4eb2-a62e-a4950f4ef65d